bitfinex/quotes_BTCUSD_20250218
["timestamp","ask_amount","ask_price","bid_price","bid_amount"]
[1739886450174,1.952384,96456.0,96455.0,0.22510365]
[1739886450401,1.737838,96456.0,96455.0,0.23348249]
[1739886450599,0.203496,96457.0,96455.0,0.23348249]
[1739886450763,0.01625043,96458.0,96457.0,0.233709]
[1739886450968,0.01625043,96458.0,96457.0,0.33621265]
[1739886451165,0.01625043,96458.0,96457.0,0.34459011]
[1739886451760,0.155493,96468.0,96461.0,0.0813]
[1739886451964,1.028776,96467.0,96462.0,0.10250365]
[1739886452178,1.118258,96469.0,96462.0,0.11087766]
[1739886452372,0.155493,96468.0,96462.0,0.26637766]
[1739886452621,0.978448,96467.0,96462.0,0.26637766]
[1739886453227,0.978448,96467.0,96463.0,0.0813]
[1739886453433,0.155491,96469.0,96464.0,0.10250365]
[1739886453636,0.448782,96468.0,96464.0,0.11087153]
[1739886453793,0.019429,96474.0,96464.0,0.10250365]
[1739886453794,0.132409,96467.0,96464.0,0.10250365]
[1739886453986,0.616827,96470.0,96465.0,0.16385663]
[1739886454251,0.481163,96469.0,96466.0,0.10250365]
[1739886454395,0.155487,96471.0,96466.0,0.10250365]
[1739886454396,0.395547,96470.0,96467.0,0.0808]
[1739886454595,0.155487,96471.0,96468.0,0.10250365]
[1739886454841,0.441856,96470.0,96468.0,0.11086221]
[1739886455250,0.120518,96469.0,96468.0,0.31818321]
[1739886455391,0.019429,96474.0,96472.0,0.155484]
[1739886455595,0.019429,96474.0,96473.0,0.10250365]
[1739886455804,0.019429,96474.0,96473.0,0.11085876]
[1739886456450,0.174911,96474.0,96473.0,0.11085876]
[1739886456826,1.985028,96474.0,96473.0,0.11085876]
[1739886457023,1.829546,96474.0,96473.0,0.11085876]
[1739886457271,1.985028,96474.0,96473.0,0.10250365]
[1739886458589,1.985028,96474.0,96473.0,0.10550365]
[1739886460542,1.432983,96474.0,96473.0,0.10550365]
[1739886460743,1.368643,96474.0,96473.0,0.11385576]
[1739886460989,1.342675,96474.0,96473.0,0.10550365]
[1739886461320,1.342675,96474.0,96473.0,0.11385576]
[1739886461454,0.713464,96474.0,96473.0,0.11385576]
[1739886461655,0.537887,96474.0,96473.0,0.11385576]
[1739886462202,0.483522,96474.0,96473.0,0.11385576]
[1739886462512,0.452363,96474.0,96473.0,0.11385576]
[1739886464225,0.607845,96474.0,96473.0,0.11385576]
[1739886464855,0.452363,96474.0,96473.0,0.11385576]
[1739886465480,0.452363,96474.0,96473.0,0.26933876]
[1739886465615,0.452363,96474.0,96473.0,0.11385576]
[1739886466845,0.0001703,96474.0,96473.0,0.35123876]
[1739886470475,0.0001703,96474.0,96473.0,0.19575576]
[1739886471402,0.1556523,96474.0,96473.0,0.19366376]
[1739886473572,0.1556523,96474.0,96473.0,0.18740365]
[1739886473770,0.1556523,96474.0,96473.0,0.19366295]
[1739886475932,0.0001703,96474.0,96473.0,0.19366295]
[1739886476380,0.1556523,96474.0,96473.0,0.19366295]
[1739886481676,0.0001703,96474.0,96473.0,0.19366295]
[1739886481882,0.1556523,96474.0,96473.0,0.19366295]
[1739886482327,0.0001703,96474.0,96473.0,0.19366295]
[1739886482798,0.1556523,96474.0,96473.0,0.19366295]
[1739886483758,0.0001703,96474.0,96473.0,0.34914595]
[1739886483921,0.0001703,96474.0,96473.0,0.19366295]
[1739886484342,0.1556523,96474.0,96473.0,0.19366295]
[1739886485319,0.0001703,96474.0,96473.0,0.19366295]
[1739886486262,0.17616137,96478.0,96473.0,0.19366295]
[1739886486524,0.155479,96476.0,96473.0,0.19366295]
[1739886486728,0.155477,96477.0,96473.0,0.19366295]
[1739886486857,0.155479,96476.0,96473.0,0.19366295]
[1739886487057,0.01817859,96479.0,96473.0,0.19366295]
[1739886487337,0.155482,96474.0,96473.0,0.19366295]
[1739886487680,0.155482,96474.0,96473.0,0.18740365]
[1739886487882,0.15548,96475.0,96473.0,0.18740365]
[1739886488122,0.0001703,96474.0,96473.0,0.18996639]
[1739886488320,0.0001703,96474.0,96473.0,0.19196639]
[1739886488754,0.0001703,96474.0,96473.0,0.18996639]
[1739886488960,0.0001703,96474.0,96473.0,0.19296639]
[1739886489360,0.0001703,96474.0,96473.0,0.18996639]
[1739886489566,0.0001703,96474.0,96473.0,0.19296639]
[1739886489954,0.1556523,96474.0,96473.0,0.18996639]
[1739886490380,0.0001703,96474.0,96473.0,0.18996639]
[1739886491183,0.0001703,96474.0,96473.0,0.19296639]
[1739886491823,0.0001703,96474.0,96473.0,0.19796639]
[1739886492017,0.1556523,96474.0,96473.0,0.19796639]
[1739886492201,0.8206813,96474.0,96473.0,0.19796639]
[1739886492376,3.6272253,96474.0,96473.0,0.11606639]
[1739886492721,3.6272253,96474.0,96473.0,0.11050365]
[1739886492938,3.6272253,96474.0,96473.0,0.10579027]
[1739886493124,3.6272253,96474.0,96473.0,0.09779027]
[1739886494243,3.4717433,96474.0,96473.0,0.09779027]
[1739886494482,0.1086023,96474.0,96473.0,0.18339027]
[1739886494808,0.1086023,96474.0,96473.0,0.18039027]
[1739886495080,0.1086023,96474.0,96473.0,0.18995432]
[1739886495081,0.0001703,96474.0,96473.0,0.18995432]
[1739886495293,0.0001703,96474.0,96473.0,0.38773732]
[1739886495743,0.0001703,96474.0,96473.0,0.39273732]
[1739886497537,0.0001703,96474.0,96473.0,0.38773732]
[1739886497744,0.0001703,96474.0,96473.0,0.39273732]
[1739886498001,0.0001703,96474.0,96473.0,0.38773732]
[1739886498250,0.0001703,96474.0,96473.0,0.39273732]
[1739886498652,0.0001703,96474.0,96473.0,0.71623732]
[1739886498907,0.0001703,96474.0,96473.0,0.72123732]
[1739886499320,0.0001703,96474.0,96473.0,0.71623732]
[1739886499856,0.0001703,96474.0,96473.0,0.56075432]
[1739886500071,0.0001703,96474.0,96473.0,0.71623732]
[1739886500864,0.0001703,96474.0,96473.0,0.71657792]
[1739886501440,0.0001703,96474.0,96473.0,0.72157792]
[1739886503834,0.0001703,96474.0,96473.0,0.56609492]
[1739886504429,0.0001703,96474.0,96473.0,0.72157792]
[1739886504634,0.0001703,96474.0,96473.0,0.56609492]
[1739886509013,0.1556523,96474.0,96473.0,0.56609492]
[1739886509321,0.1556523,96474.0,96473.0,0.56053087]
[1739886509818,0.1556523,96474.0,96473.0,0.56609057]
[1739886511010,0.0001703,96474.0,96473.0,0.56609057]
[1739886511391,0.1556523,96474.0,96473.0,0.56609057]
[1739886512739,0.1556523,96474.0,96473.0,0.56053087]
[1739886512939,0.1556523,96474.0,96473.0,0.56609168]
[1739886513146,3.6272253,96474.0,96473.0,0.43719168]
[1739886513553,2.7522793,96474.0,96473.0,0.43163087]
[1739886514646,2.7522793,96474.0,96473.0,0.42663087]
[1739886515101,0.1556523,96474.0,96473.0,0.42863087]
[1739886515555,5.7879333,96474.0,96473.0,0.33640396]
[1739886515690,5.0754383,96474.0,96473.0,0.3308406]
[1739886515891,5.08101147,96474.0,96473.0,0.3308406]
[1739886516498,5.08101147,96474.0,96473.0,0.0023406]
[1739886516907,5.23411147,96474.0,96473.0,0.0023406]
[1739886517258,5.23411147,96474.0,96473.0,6e-07]
[1739886517394,0.36949947,96474.0,96473.0,6e-07]
[1739886517578,0.17080722,96474.0,96473.0,6e-07]
[1739886517784,0.1555,96463.0,96462.0,0.0003406]
[1739886518137,6.862967,96463.0,96462.0,0.0003406]
[1739886518344,7.494109,96463.0,96462.0,0.0003406]
[1739886518547,7.073094,96463.0,96462.0,0.0003406]
[1739886519085,7.08934486,96463.0,96462.0,0.0003406]
[1739886519315,7.07273186,96463.0,96462.0,0.0003406]
[1739886519519,6.94645786,96463.0,96462.0,0.0003406]
[1739886520089,6.98793386,96463.0,96462.0,0.0003406]
[1739886520786,6.77746486,96463.0,96462.0,0.0003406]
[1739886520989,6.93296486,96463.0,96462.0,0.0003406]
[1739886522787,6.916714,96463.0,96462.0,0.0003406]
[1739886523983,6.92202828,96463.0,96462.0,0.0003406]
[1739886525837,6.93827957,96463.0,96462.0,0.0003406]
[1739886526571,3.52167557,96463.0,96462.0,0.0003406]
[1739886526770,0.32706557,96463.0,96462.0,0.0003406]
[1739886526993,7.48698857,96463.0,96462.0,0.0003406]
[1739886527181,7.46991957,96463.0,96462.0,0.0003406]
[1739886527389,7.31867657,96463.0,96462.0,0.0003406]
[1739886527910,7.28027357,96463.0,96462.0,0.0003406]
[1739886528340,7.18261157,96463.0,96462.0,0.0003406]
[1739886528879,6.77792257,96463.0,96462.0,0.0003406]
[1739886535615,6.52482257,96463.0,96462.0,0.0003406]
[1739886536991,3.10821857,96463.0,96462.0,0.0003406]
[1739886537248,6.52482257,96463.0,96462.0,0.0003406]
[1739886537553,6.87205257,96463.0,96462.0,0.0003406]
[1739886537747,6.86594657,96463.0,96462.0,0.0003406]
[1739886537953,6.73750157,96463.0,96462.0,0.0003406]
[1739886538987,6.73767187,96463.0,96462.0,0.0003406]
[1739886539934,6.73687187,96463.0,96462.0,0.0003406]
[1739886541321,6.72062058,96463.0,96462.0,0.0003406]
[1739886543108,6.65893658,96463.0,96462.0,0.0003406]
[1739886547253,0.15,96462.0,96452.0,0.0003406]
[1739886547638,0.305517,96452.0,96451.0,2e-07]
[1739886549296,0.155537,96440.0,96439.0,0.0003404]
[1739886549522,7.439177,96440.0,96439.0,0.0003404]
[1739886549891,7.589177,96440.0,96439.0,0.0003404]
[1739886550100,7.589177,96440.0,96439.0,4e-07]
[1739886550363,0.49748967,96440.0,96439.0,4e-07]
[1739886550513,0.39507678,96440.0,96439.0,4e-07]
[1739886551321,0.30662776,96440.0,96439.0,4e-07]
[1739886551957,0.30962776,96440.0,96439.0,0.0795004]
[1739886553055,0.30862776,96440.0,96439.0,4e-07]
[1739886553259,0.30562776,96440.0,96439.0,4e-07]
[1739886553606,0.30862776,96440.0,96439.0,4e-07]
[1739886553896,0.34565971,96440.0,96439.0,4e-07]
[1739886554107,0.30562776,96440.0,96439.0,4e-07]
[1739886554667,0.30762776,96440.0,96439.0,4e-07]
[1739886554892,0.30562776,96440.0,96439.0,4e-07]
[1739886556166,0.30862776,96440.0,96439.0,4e-07]
[1739886557263,0.31062776,96440.0,96439.0,4e-07]
[1739886558153,0.40007678,96440.0,96439.0,4e-07]
[1739886560433,7.04396,96439.0,96430.0,0.0003006]
[1739886560637,0.305551,96431.0,96430.0,0.0003006]
[1739886560839,6.825884,96431.0,96430.0,0.0003006]
[1739886561059,6.801771,96431.0,96430.0,0.0003006]
[1739886561284,6.817664,96431.0,96430.0,0.0003006]
[1739886562716,6.023012,96431.0,96430.0,0.0003006]
[1739886564178,6.12551565,96431.0,96430.0,0.0003006]
[1739886564797,6.023012,96431.0,96430.0,0.0003006]
[1739886567766,6.02812847,96431.0,96430.0,0.0003006]
[1739886569113,6.02912847,96431.0,96430.0,0.0003006]
[1739886574643,6.14206137,96431.0,96430.0,6e-07]
[1739886574855,0.44049337,96431.0,96430.0,6e-07]
[1739886576223,0.15557,96419.0,96418.0,0.0776]
[1739886576424,7.43921,96419.0,96418.0,0.08263274]
[1739886576740,6.71689,96419.0,96418.0,0.0776]
[1739886577151,6.51689,96419.0,96418.0,0.0776]
[1739886577363,6.82246,96419.0,96418.0,0.0776]
[1739886577760,6.82346,96419.0,96418.0,0.0776]
[1739886580608,6.318007,96419.0,96418.0,0.0776]
[1739886580965,6.062995,96419.0,96418.0,0.0776]
[1739886581416,5.687645,96419.0,96418.0,0.0776]
[1739886582967,5.1817,96419.0,96418.0,0.0776]
[1739886585170,2.064538,96419.0,96418.0,0.0776]
[1739886585402,0.30657,96419.0,96418.0,0.0779406]
[1739886585574,6.146082,96419.0,96418.0,0.0779406]
[1739886586903,6.146082,96419.0,96418.0,0.0003406]
[1739886587138,5.841301,96419.0,96418.0,0.0003406]
[1739886587328,5.311741,96419.0,96418.0,0.0003406]
[1739886587520,4.609771,96419.0,96418.0,0.0003406]
[1739886588028,4.608771,96419.0,96418.0,0.0003406]
[1739886588798,4.610771,96419.0,96418.0,0.0003406]
[1739886589511,4.610771,96419.0,96418.0,0.0767406]
[1739886590480,4.608771,96419.0,96418.0,0.0767406]
[1739886591281,4.610771,96419.0,96418.0,0.0767406]
[1739886591619,4.608771,96419.0,96418.0,0.0767406]
[1739886592137,4.609771,96419.0,96418.0,0.0767406]
[1739886592311,4.608771,96419.0,96418.0,0.0767406]
[1739886593544,4.610771,96419.0,96418.0,0.0767406]
[1739886595667,1.493609,96419.0,96418.0,0.0767406]
[1739886595889,0.30757,96419.0,96418.0,0.0767406]
[1739886596079,5.528665,96419.0,96418.0,0.0767406]
[1739886596280,5.655688,96419.0,96418.0,0.0767406]
[1739886597042,5.526871,96419.0,96418.0,0.0767406]
[1739886597385,5.524871,96419.0,96418.0,0.0767406]
[1739886597592,5.527871,96419.0,96418.0,0.0767406]
[1739886597973,5.5250414,96419.0,96418.0,0.0717406]
[1739886598816,5.5280414,96419.0,96418.0,0.0717406]
[1739886600104,5.2224714,96419.0,96418.0,0.0717406]
[1739886600325,5.3780414,96419.0,96418.0,0.0717406]
[1739886603057,5.2850994,96419.0,96418.0,0.0717406]
[1739886603388,5.1419744,96419.0,96418.0,0.0717406]
[1739886603584,5.0798964,96419.0,96418.0,0.0717406]
[1739886603808,4.9708384,96419.0,96418.0,0.0717406]
[1739886604132,4.9678384,96419.0,96418.0,0.0717406]
[1739886604338,4.9708384,96419.0,96418.0,0.0717406]
[1739886604542,4.9678384,96419.0,96418.0,0.0717406]
[1739886605206,4.9688384,96419.0,96418.0,0.0717406]
[1739886605442,4.9585984,96419.0,96418.0,0.0717406]
[1739886605834,4.9615984,96419.0,96418.0,0.0717406]
[1739886606236,0.305577,96415.0,96414.0,0.0003404]
[1739886606439,6.936134,96415.0,96414.0,0.0003404]
[1739886606799,7.280535,96415.0,96414.0,0.0003404]
[1739886607127,7.044602,96415.0,96414.0,0.0003404]
[1739886607307,6.881428,96415.0,96414.0,0.0003404]
[1739886608111,6.883428,96415.0,96414.0,0.0003404]
[1739886608513,6.375862,96415.0,96414.0,0.0003404]
[1739886609122,6.338848,96415.0,96414.0,0.0003404]
[1739886609359,5.232998,96415.0,96414.0,0.0003404]
[1739886609570,4.890633,96415.0,96414.0,0.0003404]
[1739886609998,4.821439,96415.0,96414.0,0.0003404]
[1739886610206,4.060293,96415.0,96414.0,0.0003404]
[1739886610453,3.990766,96415.0,96414.0,0.0003404]
[1739886610659,3.717111,96415.0,96414.0,0.0807404]
[1739886610915,3.718111,96415.0,96414.0,0.0807404]
[1739886611541,3.717111,96415.0,96414.0,0.0807404]
[1739886613285,0.609189,96415.0,96414.0,0.0807404]
[1739886613488,3.718111,96415.0,96414.0,0.0807404]
[1739886613638,4.038489,96415.0,96414.0,0.0807404]
[1739886613842,3.947845,96415.0,96414.0,0.0807404]
[1739886629241,3.891755,96415.0,96414.0,0.0807404]
[1739886629435,3.806351,96415.0,96414.0,0.0807404]
[1739886637947,3.60561949,96415.0,96414.0,0.0807404]
[1739886638171,3.76119649,96415.0,96414.0,0.0807404]
[1739886640772,3.76119649,96415.0,96414.0,0.07934856]
[1739886642024,0.65327449,96415.0,96414.0,0.07934856]
[1739886642227,5.70327449,96415.0,96414.0,0.07934856]
[1739886642402,7.99436249,96415.0,96414.0,0.07934856]
[1739886645137,7.99436249,96415.0,96414.0,0.07968936]
[1739886646221,7.95832949,96415.0,96414.0,0.07968936]
[1739886648791,7.94687449,96415.0,96414.0,0.07968936]
[1739886649004,0.15558,96413.0,96412.0,3e-07]
[1739886649150,0.30558,96413.0,96412.0,3e-07]
[1739886650145,0.30758,96413.0,96412.0,3e-07]
[1739886650575,0.30758,96413.0,96412.0,0.0753003]
[1739886652226,0.30558,96413.0,96412.0,0.0753003]
[1739886653086,0.30658,96413.0,96412.0,0.0753003]
[1739886653690,0.30558,96413.0,96412.0,3e-07]
[1739886653891,0.30658,96413.0,96412.0,3e-07]
[1739886654438,0.30558,96413.0,96412.0,3e-07]
[1739886654628,0.30658,96413.0,96412.0,3e-07]
[1739886655408,0.30558,96413.0,96412.0,3e-07]
[1739886656896,0.30658,96413.0,96412.0,3e-07]
[1739886660488,0.30658,96413.0,96412.0,0.0797003]
[1739886661284,0.15658,96413.0,96412.0,0.1258003]
[1739886661466,0.2076084,96415.0,96412.0,0.1258003]
[1739886661669,0.0001704,96415.0,96414.0,0.1271]
[1739886662028,0.1557474,96415.0,96414.0,0.23464747]
[1739886662470,0.1557474,96415.0,96414.0,0.22960365]
[1739886662876,2.7192894,96415.0,96414.0,0.22960365]
[1739886663496,2.8748664,96415.0,96414.0,0.22960365]
[1739886663702,1.7105464,96415.0,96414.0,0.22960365]
[1739886663905,1.5877404,96415.0,96414.0,0.22960365]
[1739886664083,1.5877404,96415.0,96414.0,0.23464508]
[1739886664287,0.015893,96431.0,96414.0,0.39022408]
[1739886664489,0.015893,96431.0,96418.0,0.155572]
[1739886664701,0.015893,96431.0,96418.0,0.38111259]
[1739886664872,0.015893,96431.0,96418.0,0.38511243]
[1739886665078,0.223295,96431.0,96418.0,0.38511243]
[1739886665276,0.015893,96431.0,96418.0,0.38511243]
[1739886665867,0.015893,96431.0,96418.0,0.39246169]
[1739886665868,0.155553,96430.0,96418.0,0.39246169]
[1739886666107,0.155556,96428.0,96418.0,0.39246169]
[1739886666313,0.9467594,96419.0,96418.0,0.23688969]
[1739886666488,3.2822294,96419.0,96418.0,0.23688969]
[1739886666685,2.9860414,96419.0,96418.0,0.25633232]
[1739886666914,2.3789034,96419.0,96418.0,0.25129554]
[1739886667504,2.5344734,96419.0,96418.0,0.24897904]
[1739886667697,2.5354734,96419.0,96418.0,0.25397904]
[1739886668105,2.3799034,96419.0,96418.0,0.24894628]
[1739886668303,2.3799034,96419.0,96418.0,0.22950365]
[1739886668910,2.3799034,96419.0,96418.0,0.23453743]
[1739886669725,0.8510594,96419.0,96418.0,0.39010943]
[1739886670065,0.0011704,96419.0,96418.0,0.39010943]
[1739886671087,0.0011704,96419.0,96418.0,0.38006943]
[1739886673407,0.2621864,96419.0,96418.0,0.22449743]
[1739886673605,3.5764304,96419.0,96418.0,0.22449743]
[1739886673810,3.6574304,96419.0,96418.0,0.22449743]
[1739886674007,3.7554534,96419.0,96418.0,0.21946365]
[1739886674636,3.4879204,96419.0,96418.0,0.21946365]
[1739886674903,3.3710234,96419.0,96418.0,0.21946365]
[1739886675566,3.2154534,96419.0,96418.0,0.21946365]
[1739886676150,3.2154534,96419.0,96418.0,0.22421415]
[1739886676565,3.3710234,96419.0,96418.0,0.22421415]
[1739886676957,3.2154534,96419.0,96418.0,0.22421415]
[1739886677359,3.3710234,96419.0,96418.0,0.22421415]
[1739886677584,3.1530784,96419.0,96418.0,0.22421415]
[1739886677944,3.2510334,96419.0,96418.0,0.22421415]
[1739886678473,3.1637744,96419.0,96418.0,0.21946365]
[1739886679100,2.8944972,96419.0,96418.0,0.21946365]
[1739886679473,3.49256,96420.0,96418.0,0.22421461]
[1739886679763,0.155569,96420.0,96419.0,0.10250365]
[1739886680173,3.830883,96420.0,96419.0,0.10725415]
[1739886680536,3.830883,96420.0,96419.0,0.10250365]
[1739886680715,0.155569,96420.0,96419.0,0.10250365]
[1739886680912,3.857866,96420.0,96419.0,0.10450365]
[1739886681113,3.857866,96420.0,96419.0,0.10925404]
[1739886681413,3.472899,96420.0,96419.0,0.10450365]
[1739886681812,3.356649,96420.0,96419.0,0.10450365]
[1739886682259,3.294456,96420.0,96419.0,0.10450365]
[1739886684055,3.294456,96420.0,96419.0,0.10250365]
[1739886684192,3.293456,96420.0,96419.0,0.10250365]
[1739886684396,3.294456,96420.0,96419.0,0.10650365]
[1739886685045,2.598622,96420.0,96419.0,0.10650365]
[1739886685664,2.184132,96420.0,96419.0,0.10650365]
[1739886686034,2.110132,96420.0,96419.0,0.10650365]
[1739886689371,1.954563,96420.0,96419.0,0.10650365]
[1739886689574,0.001,96420.0,96419.0,0.33827365]
[1739886690004,0.001,96420.0,96419.0,0.34302408]
[1739886691399,0.001,96420.0,96419.0,0.71722408]
[1739886691603,0.0011703,96420.0,96419.0,0.71722408]
[1739886692645,0.0001703,96420.0,96419.0,0.71322408]
[1739886693173,0.0011703,96420.0,96419.0,0.71622408]
[1739886693411,0.0001703,96420.0,96419.0,0.71322408]
[1739886693571,0.0001703,96420.0,96419.0,0.7205799]
[1739886693771,0.0011703,96420.0,96419.0,0.7235799]
[1739886694039,0.0001703,96420.0,96419.0,0.7205799]
[1739886695378,0.0011703,96420.0,96419.0,0.7275799]
[1739886698284,0.0011703,96420.0,96419.0,0.5720099]
[1739886699299,0.0011703,96420.0,96419.0,0.7275799]
[1739886699522,0.0011703,96420.0,96419.0,0.72022408]
[1739886700607,0.0011703,96420.0,96419.0,0.56465408]
[1739886701144,0.207395,96434.0,96419.0,0.56465408]
[1739886701320,0.0950844,96430.0,96419.0,0.56465408]
[1739886701624,0.155565,96423.0,96419.0,0.55990365]
[1739886701802,0.207408,96428.0,96419.0,0.55990365]
[1739886702008,0.155563,96424.0,96420.0,0.00474648]
[1739886702317,0.155564,96424.0,96421.0,0.10250365]
[1739886703239,0.155564,96424.0,96422.0,0.00474619]
[1739886703419,0.155564,96424.0,96423.0,0.10250365]
[1739886703596,4.665996,96424.0,96423.0,0.10724937]
[1739886703758,4.437879,96424.0,96423.0,0.10724937]
[1739886703964,4.437879,96424.0,96423.0,0.10250365]
[1739886704332,4.014055,96424.0,96423.0,0.10250365]
[1739886705489,3.80844267,96424.0,96423.0,0.10750365]
[1739886705785,4.887416,96425.0,96423.0,0.10750365]
[1739886705989,4.371621,96424.0,96423.0,0.10750365]
[1739886706356,3.880391,96424.0,96423.0,0.005]
[1739886706509,0.155562,96424.0,96423.0,0.005]
[1739886706713,0.155569,96420.0,96419.0,0.1222404]
[1739886706922,4.006399,96420.0,96419.0,0.22474405]
[1739886708608,3.991684,96420.0,96419.0,0.22474405]
[1739886708811,3.682535,96420.0,96419.0,0.22474405]
[1739886709017,3.825092,96421.0,96419.0,0.22474405]
[1739886709237,4.669967,96421.0,96420.0,0.10250365]
[1739886709441,3.95558,96421.0,96420.0,0.10250365]
[1739886709644,3.95558,96421.0,96420.0,0.10150365]
[1739886709843,3.95558,96421.0,96419.0,0.1282404]
[1739886709844,0.155569,96420.0,96419.0,0.0063404]
[1739886710213,5.348686,96420.0,96419.0,0.0063404]
[1739886710371,5.348686,96420.0,96419.0,0.0113404]
[1739886710772,5.313864,96420.0,96419.0,0.0113404]
[1739886711774,5.313864,96420.0,96419.0,0.0003404]
[1739886711980,5.463864,96420.0,96419.0,0.0003404]
[1739886712525,5.463864,96420.0,96419.0,0.0053404]
[1739886713359,5.463864,96420.0,96419.0,0.0003404]
[1739886713532,1.268139,96420.0,96419.0,0.0003404]
[1739886713740,0.31073313,96420.0,96419.0,0.0003404]
[1739886714103,7.61113413,96420.0,96419.0,0.0003404]
[1739886719836,7.65719628,96420.0,96419.0,0.0003404]
[1739886719998,7.61113413,96420.0,96419.0,0.0003404]
[1739886720197,0.35007,96419.0,96418.0,0.0003406]
[1739886720415,0.30558,96413.0,96412.0,3e-07]
[1739886720617,0.42048095,96413.0,96412.0,3e-07]
[1739886721684,0.305587,96409.0,96408.0,0.0003009]
[1739886721879,9.59807112,96409.0,96408.0,0.0003009]
[1739886722120,9.08336477,96409.0,96408.0,0.0003009]
[1739886722407,9.08336477,96409.0,96382.0,0.0754]
[1739886722408,0.305598,96402.0,96382.0,0.0754]
[1739886722637,8.826733,96402.0,96382.0,0.0754]
[1739886722862,8.550668,96402.0,96382.0,0.0754]
[1739886723109,8.550668,96402.0,96401.0,0.00047174]
[1739886723801,8.64639669,96402.0,96401.0,0.00047174]
[1739886724592,8.65039669,96402.0,96401.0,0.00047174]
[1739886724996,8.7929444,96402.0,96401.0,0.00047174]
[1739886725196,8.7969444,96402.0,96401.0,0.00047174]
[1739886725820,0.305614,96392.0,96374.0,0.1252]
[1739886726026,8.584701,96392.0,96391.0,0.00053113]
[1739886726351,8.48509465,96392.0,96391.0,0.00053113]
[1739886726968,8.382591,96392.0,96391.0,0.00053113]
[1739886728570,8.383591,96392.0,96391.0,0.00053113]
[1739886730172,8.47662179,96392.0,96391.0,0.00053113]
[1739886730580,7.596482,96392.0,96391.0,0.00053113]
[1739886730802,2.63142,96392.0,96391.0,0.00053113]
[1739886731008,0.306614,96392.0,96391.0,0.00053113]
[1739886731286,7.92529365,96392.0,96391.0,0.00053113]
[1739886731482,7.69683365,96392.0,96391.0,0.00053113]
[1739886731902,7.59947718,96392.0,96391.0,0.00053113]
[1739886733110,7.48925118,96392.0,96391.0,0.00053113]
[1739886735766,0.305633,96380.0,96367.0,0.0826]
[1739886735974,9.15858863,96380.0,96379.0,0.00393295]
[1739886736179,8.78356063,96380.0,96379.0,0.00393295]
[1739886736474,8.07160963,96380.0,96379.0,0.00393295]
[1739886737447,7.979933,96380.0,96379.0,0.00393295]
[1739886737649,7.977933,96380.0,96379.0,0.00393295]
[1739886738037,7.981933,96380.0,96379.0,0.00393295]
[1739886738203,7.863409,96380.0,96379.0,0.00393295]
[1739886738419,7.859409,96380.0,96379.0,0.00393295]
[1739886738620,7.864409,96380.0,96379.0,0.00393295]
[1739886739503,4.474462,96380.0,96379.0,0.00393295]
[1739886739706,4.216544,96380.0,96379.0,0.00393295]
[1739886740442,4.219544,96380.0,96379.0,0.00393295]
[1739886740642,2.561683,96380.0,96379.0,0.00393295]
[1739886740858,2.540808,96380.0,96379.0,0.00393295]
[1739886741061,2.616233,96380.0,96379.0,0.00393295]
[1739886742792,1.926839,96380.0,96379.0,0.04933295]
[1739886743147,0.885271,96380.0,96379.0,0.2274366]
[1739886743438,0.155632,96381.0,96380.0,0.0756]
[1739886743593,0.155632,96381.0,96380.0,0.17810365]
[1739886743787,0.155632,96381.0,96380.0,0.18290648]
[1739886744587,0.156632,96381.0,96380.0,0.18390648]
[1739886745022,0.156632,96381.0,96380.0,0.18290648]
[1739886745262,3.586403,96381.0,96380.0,0.18390648]
[1739886745469,3.79234,96381.0,96380.0,0.08140283]
[1739886745671,3.741211,96381.0,96380.0,0.08140283]
[1739886745871,3.741211,96381.0,96380.0,0.0766]
[1739886746280,0.336632,96381.0,96380.0,0.0766]
[1739886746458,5.222048,96381.0,96380.0,0.0756]
[1739886746686,6.998517,96381.0,96380.0,0.0756]
[1739886746892,7.275963,96381.0,96380.0,0.001]
[1739886747090,0.155633,96380.0,96379.0,0.00393295]
[1739886747325,6.822442,96380.0,96379.0,0.00393295]
[1739886747918,6.707348,96380.0,96379.0,0.00393295]
[1739886748295,6.694599,96380.0,96379.0,0.00493295]
[1739886749712,6.694599,96380.0,96379.0,0.00393295]
[1739886749971,6.844599,96380.0,96379.0,0.00493295]
[1739886750209,6.844599,96380.0,96379.0,0.00393295]
[1739886750589,6.844599,96380.0,96379.0,0.00493295]
[1739886752441,6.94710265,96380.0,96379.0,0.00493295]
[1739886753462,6.56651517,96380.0,96379.0,0.00527355]
[1739886753666,6.72214817,96380.0,96379.0,0.00527355]
[1739886756120,6.24608417,96380.0,96379.0,0.00527355]
[1739886756320,6.00398117,96380.0,96379.0,0.00527355]
[1739886756913,1.96257517,96380.0,96379.0,0.00527355]
[1739886757121,6.84999117,96380.0,96379.0,0.00527355]
[1739886757316,9.538035,96380.0,96379.0,0.00527355]
[1739886757529,9.996677,96380.0,96379.0,0.00527355]
[1739886757733,9.580299,96380.0,96379.0,0.00527355]
[1739886758234,9.156018,96380.0,96379.0,0.00527355]
[1739886758810,9.083341,96380.0,96379.0,0.00527355]
[1739886759706,9.18584465,96380.0,96379.0,0.00527355]
[1739886759906,9.017279,96380.0,96379.0,0.00527355]
[1739886760572,8.598108,96380.0,96379.0,0.00527355]
[1739886762307,8.562255,96380.0,96379.0,0.00527355]
[1739886762548,8.375272,96380.0,96379.0,0.00527355]
[1739886764221,8.307741,96380.0,96379.0,0.00527355]
[1739886764550,8.224831,96380.0,96379.0,0.00527355]
[1739886765006,5.082694,96380.0,96379.0,0.08167355]
[1739886766101,5.082694,96380.0,96379.0,0.00527355]
[1739886767493,2.538235,96380.0,96379.0,0.00527355]
[1739886767754,7.425651,96380.0,96379.0,0.00527355]
[1739886767976,9.534378,96380.0,96379.0,0.00527355]
[1739886768272,9.797642,96380.0,96379.0,0.00527355]
[1739886768476,9.653593,96380.0,96379.0,0.00527355]
[1739886769029,9.71627765,96380.0,96379.0,0.00527355]
[1739886769381,9.613774,96380.0,96379.0,0.00527355]
[1739886769816,9.463239,96380.0,96379.0,0.00527355]
[1739886771158,9.319106,96380.0,96379.0,0.00527355]
[1739886771475,8.949506,96380.0,96379.0,0.00527355]
[1739886772104,8.901169,96380.0,96379.0,0.00527355]
[1739886772326,8.806627,96380.0,96379.0,0.00527355]
[1739886773154,7.641523,96380.0,96379.0,0.00527355]
[1739886773357,6.645903,96380.0,96379.0,0.00527355]
[1739886774000,0.305645,96373.0,96372.0,0.0819]
[1739886774194,7.960546,96373.0,96372.0,0.08233902]
[1739886774524,8.244593,96373.0,96372.0,0.00043902]
[1739886775430,8.34709665,96373.0,96372.0,0.00043902]
[1739886775630,8.4411501,96373.0,96372.0,0.00043902]